[Event "NOR-ch Elite 2019"]
[Site "Larvik"]
[Date "2019.07.09"]
[Round "5.13"]
[White "Altarbosh, Ward"]
[Black "Ingebretsen, Jens E"]
[Result "0-1"]
[ECO "C86"]
[WhiteElo "2202"]
[BlackElo "2276"]
[Annotator "NA"]
[PlyCount "98"]
[EventDate "2019.07.05"]
[EventType "swiss"]
[EventCountry "NOR"]
[SourceTitle "playchess.com"]
[Source "ChessBase"]
[SourceQuality "1"]
[TimeControl "40/5400+30:1800+30"]

1. e4 {[%emt 0:00:00]} e5 {[%emt 0:03:08]} 2. Nf3 {[%emt 0:00:00]} Nc6 {[%emt 0:00:10]} 3. Bb5 {[%emt 0:00:00]} a6 {[%emt 0:00:06]} 4. Ba4 {[%emt 0:00:00]} Nf6 {[%emt 0:00:21]} 5. O-O {[%emt 0:00:00]} Be7 {[%emt 0:00:15]} 6. Qe2 {[%emt 0:00:01]} b5 {[%emt 0:00:10]} 7. Bb3 {[%emt 0:00:08]} O-O {[%emt 0:00:38]} 8. c3 {[%emt 0:00:05]} d6 {[%emt 0:00:09]} 9. Rd1 {[%emt 0:00:05]} Bg4 {[%emt 0:08:56]} 10. h3 {[%emt 0:00:08]} Bh5 {[%emt 0:01:02]} 11. d3 {[%emt 0:01:34]} Qd7 {[%emt 0:01:28]} 12. Nbd2 {[%emt 0:00:09]} d5 {[%emt 0:03:07]} 13. exd5 {[%emt 0:02:47]} Nxd5 {[%emt 0:00:19]} 14. Ne4 {[%emt 0:00:52]} Rfe8 {[%emt 0:02:25]} 15. Ng3 {[%emt 0:01:41]} Bg6 {[%emt 0:00:39]} 16. Nxe5 {[%emt 0:02:19]} Nxe5 {[%emt 0:00:11]} 17. Qxe5 {[%emt 0:00:04]} c6 {[%emt 0:01:47]} 18. Bxd5 {[%emt 0:02:02]} cxd5 {[%emt 0:02:54]} 19. Qd4 {[%emt 0:02:43]} Rac8 {[%emt 0:02:15]} 20. Be3 {[%emt 0:06:06]} Rc6 {[%emt 0:09:41]} 21. a3 {[%emt 0:02:29]} Bc5 {[%emt 0:01:46]} 22. Qh4 {[%emt 0:01:01]} Bxe3 {[%emt 0:01:01]} 23. fxe3 {[%emt 0:00:01]} Rxe3 {[%emt 0:00:25]} 24. d4 {[%emt 0:00:04]} Rce6 {[%emt 0:00:55]} 25. Qf4 {[%emt 0:00:39]} h6 {[%emt 0:01:39]} 26. Rf1 {[%emt 0:00:08]} Qe8 {[%emt 0:02:11]} 27. Rf2 {[%emt 0:00:11]} Rf6 {[%emt 0:06:30]} 28. Qg4 {[%emt 0:09:53]} h5 {[%emt 0:06:08]} 29. Qg5 {[%emt 0:00:59]} Re1+ {[%emt 0:01:35]} 30. Rxe1 {[%emt 0:00:17]} Qxe1+ {[%emt 0:00:04]} 31. Rf1 {[%emt 0:00:13]} Rxf1+ {[%emt 0:00:31]} 32. Nxf1 {[%emt 0:00:04]} Bd3 {[%emt 0:00:34]} 33. Qf4 {[%emt 0:00:08]} Qb1 {[%emt 0:10:01]} 34. b4 {[%emt 0:01:10]} Qe1 {[%emt 0:03:04]} 35. Qf2 {[%emt 0:07:18]} Qa1 {[%emt 0:05:57]} 36. Qf3 {[%emt 0:01:35]} Bc4 {[%emt 0:04:08]} 37. Qf5 {[%emt 0:01:10]} g6 {[%emt 0:00:34]} 38. Qf3 {[%emt 0:02:30]} h4 {[%emt 0:07:05]} 39. Qf2 {[%emt 0:04:52]} g5 {[%emt 0:09:18]} 40. Qf6 {[%emt 0:04:34]} Qxf1+ {[%emt 0:01:05]} 41. Qxf1 {[%emt 0:30:02]} Bxf1 {[%emt 0:30:07]} 42. Kxf1 {[%emt 0:00:04]} f5 {[%emt 0:00:09]} 43. Kf2 {[%emt 0:02:29]} Kf7 {[%emt 0:00:04]} 44. Kf3 {[%emt 0:00:10]} Kf6 {[%emt 0:00:06]} 45. Ke2 {[%emt 0:24:59]} g4 {[%emt 0:02:05]} 46. Kd2 {[%emt 0:07:59]} Kg5 {[%emt 0:00:00]} 47. Ke2 {[%emt 0:09:31]} g3 {[%emt 0:00:00]} 48. c4 {[%emt 0:03:12]} dxc4 {[%emt 0:00:00]} 49. Kf3 {[%emt 0:02:30]} c3 {[%emt 0:00:00]} 0-1

[Event "NOR-ch Elite 2019"]
[Site "Larvik"]
[Date "2019.07.10"]
[Round "6.2"]
[White "Christiansen, Johan-Sebastian"]
[Black "Lie, Kjetil A."]
[Result "1/2-1/2"]
[ECO "B07"]
[WhiteElo "2548"]
[BlackElo "2538"]
[Annotator "ChessBase"]
[PlyCount "58"]
[EventDate "2019.07.05"]
[EventType "swiss"]
[EventCountry "NOR"]
[SourceTitle "playchess.com"]
[Source "ChessBase"]
[SourceQuality "1"]
[TimeControl "40/5400+30:1800+30"]

1. e4 {[%emt 0:04:06]} d6 {[%emt 0:00:37]} 2. d4 {[%emt 0:00:21]} Nf6 {[%emt 0:00:13]} 3. Nc3 {[%emt 0:00:13]} c6 {[%emt 0:00:18]} 4. Nf3 {[%emt 0:01:28]} Bg4 {[%emt 0:00:46]} 5. Be3 {[%emt 0:03:04]} e6 {[%emt 0:06:12]} 6. h3 {[%emt 0:03:17]} Bh5 {[%emt 0:01:53]} 7. Be2 {[%emt 0:10:28]} d5 {[%emt 0:02:14]} 8. exd5 {[%emt 0:02:26]} Bxf3 {[%emt 0:01:17]} 9. Bxf3 {[%emt 0:01:11]} cxd5 {[%emt 0:00:24]} 10. O-O {[%emt 0:00:18]} Nc6 {[%emt 0:00:34]} 11. Ne2 {[%emt 0:03:19]} Bd6 {[%emt 0:09:29]} 12. c4 {[%emt 0:05:59]} dxc4 {[%emt 0:11:42]} 13. Bxc6+ {[%emt 0:01:02]} bxc6 {[%emt 0:00:05]} 14. Qa4 {[%emt 0:01:36]} O-O {[%emt 0:03:08]} 15. Qxc4 {[%emt 0:03:52]} Qb6 {[%emt 0:01:26]} 16. b3 {[%emt 0:02:09]} Nd5 {[%emt 0:01:27]} 17. Bd2 {[%emt 0:16:11]} a5 {[%emt 0:13:55]} 18. Rac1 {[%emt 0:03:12]} Rfc8 {[%emt 0:00:43]} 19. Nc3 {[%emt 0:02:41]} Nxc3 {[%emt 0:00:49]} 20. Rxc3 {[%emt 0:00:27]} Bb4 {[%emt 0:02:54]} 21. Rc2 {[%emt 0:01:09]} Bxd2 {[%emt 0:00:21]} 22. Rxd2 {[%emt 0:00:01]} a4 {[%emt 0:04:19]} 23. Rc1 {[%emt 0:02:48]} axb3 {[%emt 0:00:42]} 24. axb3 {[%emt 0:00:03]} Ra5 {[%emt 0:03:07]} 25. d5 {[%emt 0:02:11]} Rxd5 {[%emt 0:03:54]} 26. Rxd5 {[%emt 0:00:22]} exd5 {[%emt 0:00:05]} 27. Qxd5 {[%emt 0:00:08]} h6 {[%emt 0:03:34]} 28. Qd7 {[%emt 0:05:15]} Qc7 {[%emt 0:05:23]} 29. Qxc7 {[%emt 0:01:53]} Rxc7 {[%emt 0:00:15]} 1/2-1/2

[Event "NOR-ch Elite 2019"]
[Site "Larvik"]
[Date "2019.07.10"]
[Round "6.3"]
[White "Notkevich, Benjamin Arvola"]
[Black "Hauge, Lars Oskar"]
[Result "1-0"]
[ECO "A04"]
[WhiteElo "2497"]
[BlackElo "2476"]
[Annotator "ChessBase"]
[PlyCount "185"]
[EventDate "2019.07.05"]
[EventType "swiss"]
[EventCountry "NOR"]
[SourceTitle "playchess.com"]
[Source "ChessBase"]
[SourceQuality "1"]
[TimeControl "40/5400+30:1800+30"]

1. Nf3 {[%emt 0:00:00]} f5 {[%emt 0:00:22]} 2. d3 {[%emt 0:00:00]} Nc6 {[%emt 0:00:50]} 3. d4 {[%emt 0:00:00]} d5 {[%emt 0:00:09]} 4. Bf4 {[%emt 0:02:28]} Nf6 {[%emt 0:01:53]} 5. e3 {[%emt 0:01:56]} e6 {[%emt 0:00:22]} 6. Bb5 {[%emt 0:03:26]} Bd6 {[%emt 0:02:29]} 7. O-O {[%emt 0:00:24]} O-O {[%emt 0:02:53]} 8. c4 {[%emt 0:05:18]} Ne7 {[%emt 0:07:53]} 9. Bxd6 {[%emt 0:18:22]} cxd6 {[%emt 0:03:28]} 10. cxd5 {[%emt 0:01:04]} Nexd5 {[%emt 0:00:10]} 11. Nc3 {[%emt 0:05:49]} Bd7 {[%emt 0:03:51]} 12. Qb3 {[%emt 0:00:11]} Bxb5 {[%emt 0:02:21]} 13. Qxb5 {[%emt 0:00:15]} Nxc3 {[%emt 0:00:39]} 14. bxc3 {[%emt 0:00:06]} Qd7 {[%emt 0:00:18]} 15. Qb3 {[%emt 0:01:03]} b5 {[%emt 0:01:38]} 16. a4 {[%emt 0:31:13]} a6 {[%emt 0:01:29]} 17. axb5 {[%emt 0:04:39]} axb5 {[%emt 0:01:44]} 18. Ng5 {[%emt 0:00:08]} Rae8 {[%emt 0:05:50]} 19. Ra5 {[%emt 0:03:17]} h6 {[%emt 0:00:36]} 20. Nh3 {[%emt 0:00:51]} Ne4 {[%emt 0:05:03]} 21. Rfa1 {[%emt 0:03:30]} Qc8 {[%emt 0:04:15]} 22. Qxb5 {[%emt 0:11:20]} Qxc3 {[%emt 0:05:33]} 23. g3 {[%emt 0:01:58]} Rb8 {[%emt 0:07:27]} 24. Qd7 {[%emt 0:00:06]} Qc8 {[%emt 0:00:07]} 25. Qxc8 {[%emt 0:00:45]} Rfxc8 {[%emt 0:01:07]} 26. Ra7 {[%emt 0:00:59]} e5 {[%emt 0:04:09]} 27. dxe5 {[%emt 0:00:56]} dxe5 {[%emt 0:00:04]} 28. Re7 {[%emt 0:02:51]} Re8 {[%emt 0:01:02]} 29. Rc7 {[%emt 0:00:11]} Ra8 {[%emt 0:00:51]} 30. Rd1 {[%emt 0:00:20]} Red8 {[%emt 0:00:19]} 31. Rdc1 {[%emt 0:00:51]} Ra2 {[%emt 0:09:35]} 32. Rb7 {[%emt 0:01:05]} Rd6 {[%emt 0:05:04]} 33. Rcc7 {[%emt 0:00:24]} Rg6 {[%emt 0:00:07]} 34. Re7 {[%emt 0:00:35]} Ra5 {[%emt 0:00:55]} 35. Kg2 {[%emt 0:00:27]} Kh7 {[%emt 0:00:39]} 36. Rb2 {[%emt 0:00:30]} Rga6 {[%emt 0:00:54]} 37. Rbb7 {[%emt 0:00:07]} Rg6 {[%emt 0:00:06]} 38. Rbc7 {[%emt 0:00:27]} Rb5 {[%emt 0:02:19]} 39. Ra7 {[%emt 0:00:11]} Rc5 {[%emt 0:00:31]} 40. Rf7 {[%emt 0:01:13]} Nd6 {[%emt 0:00:41]} 41. Rfd7 {[%emt 0:05:29]} Ne4 {[%emt 0:00:27]} 42. Re7 {[%emt 0:00:07]} Rb5 {[%emt 0:00:21]} 43. Ra8 {[%emt 0:02:28]} Rgb6 {[%emt 0:02:09]} 44. Rf8 {[%emt 0:00:08]} Rf6 {[%emt 0:04:51]} 45. Rfe8 {[%emt 0:00:25]} Ng5 {[%emt 0:05:39]} 46. Ng1 {[%emt 0:14:43]} f4 {[%emt 0:06:31]} 47. Rxe5 {[%emt 0:00:11]} f3+ {[%emt 0:00:06]} 48. Nxf3 {[%emt 0:00:20]} Rb2 {[%emt 0:00:02]} 49. Rxg5 {[%emt 0:01:05]} hxg5 {[%emt 0:00:42]} 50. Nxg5+ {[%emt 0:00:06]} Kg6 {[%emt 0:00:09]} 51. Nh3 {[%emt 0:00:26]} Rd6 {[%emt 0:01:04]} 52. Rf8 {[%emt 0:02:04]} Kh6 {[%emt 0:01:21]} 53. Rh8+ {[%emt 0:00:48]} Kg6 {[%emt 0:00:06]} 54. Nf4+ {[%emt 0:00:22]} Kf7 {[%emt 0:00:06]} 55. h4 {[%emt 0:00:47]} Rdd2 {[%emt 0:00:08]} 56. Nh3 {[%emt 0:00:08]} Ke7 {[%emt 0:00:48]} 57. Ra8 {[%emt 0:00:15]} Ra2 {[%emt 0:00:15]} 58. Rb8 {[%emt 0:00:08]} Rab2 {[%emt 0:00:08]} 59. Rc8 {[%emt 0:00:17]} Rdc2 {[%emt 0:00:11]} 60. Rh8 {[%emt 0:00:43]} Kf7 {[%emt 0:00:08]} 61. Rh5 {[%emt 0:00:33]} Rc6 {[%emt 0:00:35]} 62. Rf5+ {[%emt 0:00:18]} Rf6 {[%emt 0:00:09]} 63. Ra5 {[%emt 0:00:12]} Kf8 {[%emt 0:00:25]} 64. Ra7 {[%emt 0:00:16]} Rfb6 {[%emt 0:00:12]} 65. h5 {[%emt 0:05:49]} Rb7 {[%emt 0:00:12]} 66. Ra8+ {[%emt 0:00:04]} Rb8 {[%emt 0:00:02]} 67. Ra6 {[%emt 0:00:07]} R8b6 {[%emt 0:00:01]} 68. Ra4 {[%emt 0:00:07]} R6b4 {[%emt 0:00:02]} 69. Ra1 {[%emt 0:00:08]} Rb1 {[%emt 0:00:04]} 70. Ra3 {[%emt 0:00:07]} R1b3 {[%emt 0:00:08]} 71. Ra8+ {[%emt 0:00:06]} Rb8 {[%emt 0:00:03]} 72. Ra7 {[%emt 0:00:06]} R8b7 {[%emt 0:00:01]} 73. Ra6 {[%emt 0:00:07]} R7b6 {[%emt 0:00:04]} 74. Ra4 {[%emt 0:00:06]} R3b4 {[%emt 0:00:09]} 75. Ra8+ {[%emt 0:00:06]} Rb8 {[%emt 0:00:08]} 76. Ra7 {[%emt 0:00:11]} R8b7 {[%emt 0:00:05]} 77. Ra6 {[%emt 0:00:06]} R7b6 {[%emt 0:00:07]} 78. Ra5 {[%emt 0:00:20]} R6b5 {[%emt 0:00:25]} 79. Ra8+ {[%emt 0:00:04]} Kf7 {[%emt 0:02:38]} 80. Nf4 {[%emt 0:01:04]} Rxf4 {[%emt 0:01:39]} 81. Ra7+ {[%emt 0:00:35]} Kf6 {[%emt 0:02:10]} 82. Ra6+ {[%emt 0:00:03]} Kf7 {[%emt 0:00:08]} 83. gxf4 {[%emt 0:01:24]} Rxh5 {[%emt 0:00:07]} 84. Kg3 {[%emt 0:00:06]} Rb5 {[%emt 0:00:04]} 85. Kg4 {[%emt 0:00:18]} Rb2 {[%emt 0:00:11]} 86. f3 {[%emt 0:00:16]} Rb3 {[%emt 0:00:10]} 87. Ra7+ {[%emt 0:00:20]} Kf8 {[%emt 0:00:32]} 88. e4 {[%emt 0:00:07]} Re3 {[%emt 0:00:19]} 89. f5 {[%emt 0:00:11]} Re1 {[%emt 0:00:41]} 90. Kf4 {[%emt 0:01:57]} Rb1 {[%emt 0:00:12]} 91. e5 {[%emt 0:00:20]} Re1 {[%emt 0:00:06]} 92. Rb7 {[%emt 0:00:32]} Re2 {[%emt 0:00:51]} 93. Rb6 {[%emt 0:02:10]} 1-0

[Event "NOR-ch Elite 2019"]
[Site "Larvik"]
[Date "2019.07.10"]
[Round "6.4"]
[White "Stokke, Kjetil"]
[Black "Hammer, Jon Ludvig"]
[Result "0-1"]
[ECO "A37"]
[WhiteElo "2336"]
[BlackElo "2637"]
[Annotator "RC"]
[PlyCount "44"]
[EventDate "2019.07.05"]
[EventType "swiss"]
[EventCountry "NOR"]
[SourceTitle "playchess.com"]
[Source "ChessBase"]
[SourceQuality "1"]
[TimeControl "40/5400+30:1800+30"]

1. Nf3 {[%emt 0:00:39]} c5 {[%emt 0:00:00]} 2. g3 {[%emt 0:00:23]} g6 {[%emt 0:00:00]} 3. Bg2 {[%emt 0:00:08]} Bg7 {[%emt 0:00:00]} 4. c4 {[%emt 0:00:08]} Nc6 {[%emt 0:00:00]} 5. Nc3 {[%emt 0:00:05]} d6 {[%emt 0:00:08]} 6. O-O {[%emt 0:00:16]} e6 {[%emt 0:00:14]} 7. d3 {[%emt 0:03:52]} Nge7 {[%emt 0:00:29]} 8. Bg5 {[%emt 0:01:11]} h6 {[%emt 0:00:14]} 9. Bd2 {[%emt 0:00:04]} b6 {[%emt 0:01:19]} 10. a3 {[%emt 0:02:13]} Bb7 {[%emt 0:00:55]} 11. Rb1 {[%emt 0:00:06]} O-O {[%emt 0:09:13]} 12. b4 {[%emt 0:00:55]} Qd7 {[%emt 0:00:24]} 13. bxc5 {[%emt 0:16:04]} dxc5 {[%emt 0:00:31]} 14. Nb5 {[%emt 0:00:17]} e5 {[%emt 0:16:52]} 15. a4 {[%emt 0:05:33]} a5 {[%emt 0:02:38]} 16. Qc1 {[%emt 0:01:33]} Kh7 {[%emt 0:00:42]} 17. Bc3 {[%emt 0:01:04]} f6 {[%emt 0:00:25]} 18. Nd2 {[%emt 0:08:30]} Nb4 {[%emt 0:00:47]} 19. Bxb7 {[%emt 0:03:12]} Qxb7 {[%emt 0:00:03]} 20. Ne4 {[%emt 0:00:24]} f5 {[%emt 0:05:12]} 21. Ned6 {[%emt 0:08:55]} Qd7 {[%emt 0:00:28]} 22. f4 {[%emt 0:01:45]} Na2 {[%emt 0:00:45]} 0-1

[Event "NOR-ch Elite 2019"]
[Site "Larvik"]
[Date "2019.07.10"]
[Round "6.5"]
[White "Haug, Johannes"]
[Black "Urkedal, Frode Olav Olsen"]
[Result "0-1"]
[ECO "E15"]
[WhiteElo "2431"]
[BlackElo "2566"]
[Annotator "ChessBase"]
[PlyCount "114"]
[EventDate "2019.07.05"]
[EventType "swiss"]
[EventCountry "NOR"]
[SourceTitle "playchess.com"]
[Source "ChessBase"]
[SourceQuality "1"]
[TimeControl "40/5400+30:1800+30"]

1. d4 {[%emt 0:04:01]} Nf6 {[%emt 0:00:00]} 2. c4 {[%emt 0:00:23]} e6 {[%emt 0:00:00]} 3. Nf3 {[%emt 0:00:08]} b6 {[%emt 0:00:08]} 4. g3 {[%emt 0:00:11]} Ba6 {[%emt 0:00:08]} 5. Qc2 {[%emt 0:00:06]} Bb7 {[%emt 0:00:23]} 6. Bg2 {[%emt 0:00:14]} c5 {[%emt 0:00:07]} 7. d5 {[%emt 0:01:08]} exd5 {[%emt 0:00:07]} 8. cxd5 {[%emt 0:00:52]} Nxd5 {[%emt 0:00:30]} 9. O-O {[%emt 0:01:08]} Nc6 {[%emt 0:01:45]} 10. Rd1 {[%emt 0:02:02]} Be7 {[%emt 0:00:53]} 11. Qa4 {[%emt 0:03:17]} Nf6 {[%emt 0:00:59]} 12. Nh4 {[%emt 0:01:51]} O-O {[%emt 0:00:51]} 13. Nf5 {[%emt 0:01:20]} d5 {[%emt 0:00:28]} 14. Nc3 {[%emt 0:01:12]} Nd4 {[%emt 0:00:33]} 15. Nxd4 {[%emt 0:00:45]} cxd4 {[%emt 0:00:07]} 16. Rxd4 {[%emt 0:00:37]} Bc5 {[%emt 0:01:05]} 17. Rd1 {[%emt 0:01:05]} Qc8 {[%emt 0:00:06]} 18. Nxd5 {[%emt 0:05:10]} Nxd5 {[%emt 0:00:32]} 19. Bxd5 {[%emt 0:00:41]} Bxd5 {[%emt 0:00:05]} 20. Rxd5 {[%emt 0:00:06]} Qe6 {[%emt 0:00:15]} 21. Qd1 {[%emt 0:03:08]} Qf6 {[%emt 0:00:05]} 22. Bf4 {[%emt 0:20:09]} Qxb2 {[%emt 0:00:33]} 23. Be5 {[%emt 0:02:46]} Qb5 {[%emt 0:04:41]} 24. Qd2 {[%emt 0:04:48]} h6 {[%emt 0:04:17]} 25. Bd6 {[%emt 0:07:56]} Rad8 {[%emt 0:11:32]} 26. Bxc5 {[%emt 0:04:26]} Rxd5 {[%emt 0:00:19]} 27. Qxd5 {[%emt 0:00:03]} bxc5 {[%emt 0:01:44]} 28. Rc1 {[%emt 0:02:02]} Rc8 {[%emt 0:02:52]} 29. Qf5 {[%emt 0:05:42]} Qa6 {[%emt 0:05:29]} 30. Rc2 {[%emt 0:04:28]} c4 {[%emt 0:01:42]} 31. Qe4 {[%emt 0:05:13]} Qb5 {[%emt 0:03:34]} 32. Kg2 {[%emt 0:01:57]} a5 {[%emt 0:03:25]} 33. Qd4 {[%emt 0:09:44]} c3 {[%emt 0:01:50]} 34. Qd3 {[%emt 0:00:38]} Rc4 {[%emt 0:04:39]} 35. f3 {[%emt 0:02:15]} Qc5 {[%emt 0:01:14]} 36. Qd7 {[%emt 0:03:53]} g6 {[%emt 0:01:57]} 37. Qd3 {[%emt 0:00:02]} h5 {[%emt 0:00:48]} 38. h4 {[%emt 0:00:41]} a4 {[%emt 0:00:16]} 39. Qd8+ {[%emt 0:00:23]} Kg7 {[%emt 0:00:07]} 40. Qd3 {[%emt 0:00:03]} a3 {[%emt 0:04:26]} 41. Kf1 {[%emt 0:31:50]} Qb4 {[%emt 0:34:03]} 42. Kg2 {[%emt 0:01:18]} Rc6 {[%emt 0:03:55]} 43. Kf2 {[%emt 0:00:00]} Rc4 {[%emt 0:00:00]} 44. Kg2 {[%emt 0:00:00]} Qc5 {[%emt 0:00:00]} 45. Kf1 {[%emt 0:00:00]} Qc7 {[%emt 0:00:00]} 46. Kg2 {[%emt 0:00:00]} f6 {[%emt 0:00:00]} 47. Qe3 {[%emt 0:00:00]} Rc5 {[%emt 0:00:00]} 48. Qd4 {[%emt 0:00:00]} Rc4 {[%emt 0:00:00]} 49. Qd5 {[%emt 0:00:00]} Kh7 {[%emt 0:00:00]} 50. Qe6 {[%emt 0:00:00]} Rc6 {[%emt 0:00:00]} 51. Qb3 {[%emt 0:00:00]} g5 {[%emt 0:00:00]} 52. Qd5 {[%emt 0:00:00]} Rc5 {[%emt 0:00:00]} 53. Qd3+ {[%emt 0:00:00]} Kg7 {[%emt 0:00:00]} 54. hxg5 {[%emt 0:00:00]} Rxg5 {[%emt 0:00:00]} 55. f4 {[%emt 0:00:00]} Qxf4 {[%emt 0:00:00]} 56. Rxc3 {[%emt 0:02:03]} h4 {[%emt 0:00:00]} 57. Rxa3 {[%emt 0:02:45]} h3+ {[%emt 0:00:00]} 0-1

[Event "NOR-ch Elite 2019"]
[Site "Larvik"]
[Date "2019.07.10"]
[Round "6.6"]
[White "Haldorsen, Benjamin"]
[Black "Tryggestad, Andreas Garberg"]
[Result "1-0"]
[ECO "B40"]
[WhiteElo "2444"]
[BlackElo "2336"]
[Annotator "NA"]
[PlyCount "57"]
[EventDate "2019.07.05"]
[EventType "swiss"]
[EventCountry "NOR"]
[SourceTitle "playchess.com"]
[Source "ChessBase"]
[SourceQuality "1"]
[TimeControl "40/5400+30:1800+30"]

1. e4 {[%emt 0:00:39]} c5 {[%emt 0:00:00]} 2. Nf3 {[%emt 0:00:13]} e6 {[%emt 0:00:00]} 3. b3 {[%emt 0:00:07]} b6 {[%emt 0:00:00]} 4. Bd3 {[%emt 0:00:04]} Bb7 {[%emt 0:00:00]} 5. O-O {[%emt 0:00:04]} Nc6 {[%emt 0:00:00]} 6. Re1 {[%emt 0:00:02]} Be7 {[%emt 0:00:06]} 7. Bb2 {[%emt 0:00:03]} Nf6 {[%emt 0:00:06]} 8. e5 {[%emt 0:00:03]} Nd5 {[%emt 0:01:50]} 9. c4 {[%emt 0:05:39]} Nf4 {[%emt 0:00:37]} 10. Be4 {[%emt 0:02:03]} Qc7 {[%emt 0:22:30]} 11. d4 {[%emt 0:09:22]} cxd4 {[%emt 0:07:31]} 12. Nxd4 {[%emt 0:02:17]} Nxd4 {[%emt 0:01:06]} 13. Bxd4 {[%emt 0:01:47]} O-O {[%emt 0:08:30]} 14. Nc3 {[%emt 0:06:53]} Bc6 {[%emt 0:08:00]} 15. Qg4 {[%emt 0:18:54]} Ng6 {[%emt 0:00:14]} 16. Rad1 {[%emt 0:01:41]} Rad8 {[%emt 0:05:56]} 17. Qg3 {[%emt 0:08:00]} d6 {[%emt 0:01:20]} 18. Bxg6 {[%emt 0:04:59]} hxg6 {[%emt 0:00:24]} 19. h4 {[%emt 0:01:55]} d5 {[%emt 0:02:37]} 20. cxd5 {[%emt 0:02:33]} Bxd5 {[%emt 0:00:04]} 21. Qg4 {[%emt 0:01:48]} Bb7 {[%emt 0:04:36]} 22. Re3 {[%emt 0:10:12]} Bc5 {[%emt 0:00:24]} 23. Bxc5 {[%emt 0:01:11]} Qxc5 {[%emt 0:01:00]} 24. h5 {[%emt 0:00:32]} gxh5 {[%emt 0:07:27]} 25. Qxh5 {[%emt 0:00:03]} g6 {[%emt 0:04:54]} 26. Qg5 {[%emt 0:06:01]} Rxd1+ {[%emt 0:01:36]} 27. Nxd1 {[%emt 0:00:01]} Qc1 {[%emt 0:00:16]} 28. Kh2 {[%emt 0:00:35]} Qxd1 {[%emt 0:05:06]} 29. Rh3 {[%emt 0:00:11]} 1-0

[Event "NOR-ch Elite 2019"]
[Site "Larvik"]
[Date "2019.07.10"]
[Round "6.7"]
[White "Ranaldi, Lucas"]
[Black "Elsness, Frode"]
[Result "1/2-1/2"]
[ECO "D34"]
[WhiteElo "2262"]
[BlackElo "2436"]
[Annotator "NA"]
[PlyCount "58"]
[EventDate "2019.07.05"]
[EventType "swiss"]
[EventCountry "NOR"]
[SourceTitle "playchess.com"]
[Source "ChessBase"]
[SourceQuality "1"]
[TimeControl "40/5400+30:1800+30"]

1. Nf3 {[%emt 0:00:00]} d5 {[%emt 0:00:00]} 2. d4 {[%emt 0:00:00]} c5 {[%emt 0:00:00]} 3. c4 {[%emt 0:00:08]} e6 {[%emt 0:00:07]} 4. cxd5 {[%emt 0:00:20]} exd5 {[%emt 0:00:04]} 5. Nc3 {[%emt 0:00:12]} Nc6 {[%emt 0:00:05]} 6. g3 {[%emt 0:00:10]} Nf6 {[%emt 0:00:13]} 7. Bg2 {[%emt 0:00:04]} Be7 {[%emt 0:00:43]} 8. O-O {[%emt 0:00:09]} O-O {[%emt 0:00:11]} 9. dxc5 {[%emt 0:00:06]} Bxc5 {[%emt 0:00:27]} 10. Na4 {[%emt 0:00:04]} Be7 {[%emt 0:00:27]} 11. Be3 {[%emt 0:00:06]} Re8 {[%emt 0:01:14]} 12. Rc1 {[%emt 0:00:05]} Bg4 {[%emt 0:01:00]} 13. Nc5 {[%emt 0:04:35]} Bxc5 {[%emt 0:00:46]} 14. Bxc5 {[%emt 0:00:06]} Qd7 {[%emt 0:00:45]} 15. Re1 {[%emt 0:00:08]} Rad8 {[%emt 0:08:38]} 16. Nd4 {[%emt 0:02:26]} h5 {[%emt 0:19:03]} 17. Nxc6 {[%emt 0:12:38]} bxc6 {[%emt 0:00:09]} 18. Bd4 {[%emt 0:00:50]} Re6 {[%emt 0:05:16]} 19. Bxf6 {[%emt 0:37:07]} Rxf6 {[%emt 0:03:45]} 20. Qd4 {[%emt 0:00:07]} Re8 {[%emt 0:15:34]} 21. e4 {[%emt 0:02:11]} dxe4 {[%emt 0:01:03]} 22. Qxd7 {[%emt 0:00:45]} Bxd7 {[%emt 0:00:01]} 23. Rxe4 {[%emt 0:00:32]} Rxe4 {[%emt 0:00:54]} 24. Bxe4 {[%emt 0:00:03]} Rd6 {[%emt 0:03:10]} 25. h4 {[%emt 0:07:18]} g6 {[%emt 0:05:56]} 26. Rc5 {[%emt 0:03:59]} Rd2 {[%emt 0:04:50]} 27. Ra5 {[%emt 0:09:32]} Rxb2 {[%emt 0:02:08]} 28. Rxa7 {[%emt 0:00:05]} Be6 {[%emt 0:00:24]} 29. Bxc6 {[%emt 0:02:56]} Rxa2 {[%emt 0:01:22]} 1/2-1/2

[Event "NOR-ch Elite 2019"]
[Site "Larvik"]
[Date "2019.07.10"]
[Round "6.9"]
[White "Getz, Nicolai"]
[Black "Moen, Andreas G.R."]
[Result "1-0"]
[ECO "A11"]
[WhiteElo "2377"]
[BlackElo "2322"]
[Annotator "NA"]
[PlyCount "85"]
[EventDate "2019.07.05"]
[EventType "swiss"]
[EventCountry "NOR"]
[SourceTitle "playchess.com"]
[Source "ChessBase"]
[SourceQuality "1"]
[TimeControl "40/5400+30:1800+30"]

1. Nf3 {[%emt 0:00:00]} d5 {[%emt 0:03:44]} 2. c4 {[%emt 0:00:00]} c6 {[%emt 0:02:31]} 3. g3 {[%emt 0:00:00]} Nf6 {[%emt 0:00:07]} 4. Bg2 {[%emt 0:00:14]} Bf5 {[%emt 0:07:11]} 5. Qb3 {[%emt 0:01:18]} Nbd7 {[%emt 0:00:08]} 6. d3 {[%emt 0:10:41]} e5 {[%emt 0:10:02]} 7. O-O {[%emt 0:08:28]} Be7 {[%emt 0:04:53]} 8. cxd5 {[%emt 0:05:17]} cxd5 {[%emt 0:01:42]} 9. Qxb7 {[%emt 0:07:23]} O-O {[%emt 0:04:25]} 10. Qb3 {[%emt 0:00:49]} Rb8 {[%emt 0:03:23]} 11. Qd1 {[%emt 0:00:29]} Qc7 {[%emt 0:10:56]} 12. b3 {[%emt 0:09:49]} a5 {[%emt 0:05:23]} 13. Bd2 {[%emt 0:10:30]} Rfc8 {[%emt 0:08:14]} 14. Nc3 {[%emt 0:01:36]} Ba3 {[%emt 0:08:19]} 15. Na4 {[%emt 0:03:27]} h6 {[%emt 0:07:16]} 16. Bc1 {[%emt 0:01:37]} Bb4 {[%emt 0:12:23]} 17. Bb2 {[%emt 0:00:59]} d4 {[%emt 0:01:01]} 18. Nd2 {[%emt 0:01:34]} Nc5 {[%emt 0:05:20]} 19. Nxc5 {[%emt 0:02:13]} Bxc5 {[%emt 0:00:03]} 20. Rc1 {[%emt 0:01:32]} Qe7 {[%emt 0:01:23]} 21. Nc4 {[%emt 0:00:08]} a4 {[%emt 0:00:09]} 22. bxa4 {[%emt 0:04:50]} Be6 {[%emt 0:00:01]} 23. Ba1 {[%emt 0:00:58]} Bxc4 {[%emt 0:02:00]} 24. Rxc4 {[%emt 0:00:16]} Nd7 {[%emt 0:00:46]} 25. a5 {[%emt 0:00:21]} Ba7 {[%emt 0:00:19]} 26. Qc2 {[%emt 0:02:29]} Rxc4 {[%emt 0:00:22]} 27. Qxc4 {[%emt 0:00:10]} Qc5 {[%emt 0:00:23]} 28. Bd5 {[%emt 0:03:08]} Qxc4 {[%emt 0:00:03]} 29. Bxc4 {[%emt 0:00:06]} Rb4 {[%emt 0:00:04]} 30. f4 {[%emt 0:02:39]} Kf8 {[%emt 0:00:22]} 31. Kg2 {[%emt 0:00:30]} Ke7 {[%emt 0:00:20]} 32. fxe5 {[%emt 0:01:20]} Nxe5 {[%emt 0:00:01]} 33. Bb3 {[%emt 0:00:08]} g5 {[%emt 0:01:27]} 34. Rc1 {[%emt 0:00:30]} Kd8 {[%emt 0:00:38]} 35. Rf1 {[%emt 0:07:15]} Rb5 {[%emt 0:00:47]} 36. a6 {[%emt 0:00:26]} Ke7 {[%emt 0:00:17]} 37. e3 {[%emt 0:05:20]} dxe3 {[%emt 0:00:01]} 38. d4 {[%emt 0:00:06]} Nc6 {[%emt 0:01:38]} 39. Rxf7+ {[%emt 0:00:37]} Ke8 {[%emt 0:00:02]} 40. Rxa7 {[%emt 0:05:07]} Nxa7 {[%emt 0:01:04]} 41. Ba4 {[%emt 0:30:04]} g4 {[%emt 0:06:16]} 42. Kf1 {[%emt 0:00:00]} Kd7 {[%emt 0:00:16]} 43. Bxb5+ {[%emt 0:00:00]} 1-0